fUST/lending_fUST_20250323
["ID","MTS","AMOUNT","RATE_DAILY","PERIOD"]
[356583286,1742728234468,-500.0,0.00013972,2]
[356583287,1742728234479,-500.0,0.00013972,2]
[356583288,1742728234490,-500.0,0.00013972,2]
[356583289,1742728234500,-500.0,0.00013972,2]
[356583290,1742728234511,-634.53,0.00013972,2]
[356583291,1742728234521,-1158.87,0.00013972,2]
[356583292,1742728234531,-500.0,0.00013972,2]
[356583293,1742728234542,-500.0,0.00013972,2]
[356583294,1742728234552,-500.0,0.00013972,2]
[356583295,1742728234562,-598.46,0.00013972,2]
[356583296,1742728234572,-601.59,0.00013972,2]
[356583297,1742728234583,-1375.88,0.00013972,2]
[356583298,1742728234593,-500.0,0.00013972,2]
[356583299,1742728234604,-2261.59,0.00013972,2]
[356583300,1742728234614,-565.34156264,0.00013972,2]
[356583301,1742728234625,-964.12,0.00013972,2]
[356583302,1742728234647,-1207.48,0.00013972,2]
[356583303,1742728234659,-325.6296284,0.00013972,2]
[356583304,1742728234671,-684.03,0.00013972,2]
[356583305,1742728234682,-600.27713376,0.00013972,2]
[356583306,1742728234694,-500.0,0.00013972,2]
[356583307,1742728234706,-2642.14,0.00013972,2]
[356583308,1742728234719,-500.0,0.00013972,2]
[356583309,1742728234731,-500.0,0.00013972,2]
[356583310,1742728234742,-807.54,0.00013972,2]
[356583311,1742728234754,-500.0,0.00013972,2]
[356583312,1742728234765,-500.0,0.00013972,2]
[356583313,1742728234776,-500.0,0.00013972,2]
[356583314,1742728234787,-34.11422018,0.00013972,2]
[356583315,1742728234809,-5844.36577982,0.00013972,2]
[356583316,1742728234820,-500.0,0.00013972,2]
[356583317,1742728234831,-305.20615106,0.00013972,2]
[356583318,1742728235014,-194.79384894,0.00013972,2]
[356583319,1742728235025,-500.0,0.00013972,2]
[356583320,1742728235035,-9.34136516,0.00013972,2]
[356583327,1742728239091,-500.0,0.00013698,2]
[356583328,1742728239102,-500.0,0.00013698,2]
[356583329,1742728239113,-500.0,0.00013698,2]
[356583330,1742728239123,-490.65863484,0.00013972,2]
[356583331,1742728239133,-508.67,0.00013972,2]
[356583332,1742728239143,-500.0,0.00013972,2]
[356583333,1742728239155,-500.0,0.00013972,2]
[356583334,1742728239165,-500.0,0.00013972,2]
[356583335,1742728239175,-500.0,0.00013972,2]
[356583336,1742728239184,-753.57,0.00013972,2]
[356583337,1742728239193,-781.41,0.00013972,2]
[356583338,1742728239203,-500.0,0.00013972,2]
[356583339,1742728239213,-179.60115026,0.00013972,2]
[356583340,1742728239223,-500.0,0.00013972,2]
[356583341,1742728239234,-2849.27,0.00013972,2]
[356583342,1742728239243,-500.0,0.00013972,2]
[356583343,1742728239253,-500.0,0.00013972,2]
[356583344,1742728239264,-500.0,0.00013972,2]
[356583345,1742728239274,-500.0,0.00013972,2]
[356583346,1742728239284,-500.0,0.00013972,2]
[356583347,1742728239293,-500.0,0.00013972,2]
[356583348,1742728239303,-465.85551834,0.00013972,2]
[356583349,1742728239312,-778.21,0.00013972,2]
[356583350,1742728239322,-500.0,0.00013972,2]
[356583351,1742728239332,-2450.29686,0.00013972,2]
[356583352,1742728239341,-2450.29686,0.00013972,2]
[356583353,1742728239350,-1556.6,0.00013972,2]
[356583354,1742728239360,-2450.29686,0.00013972,2]
[356583355,1742728239369,-2450.29686,0.00013972,2]
[356583356,1742728239379,-500.0,0.00013972,2]
[356583357,1742728239388,-500.0,0.00013972,2]
[356583358,1742728239399,-730.58,0.00013972,2]
[356583359,1742728239408,-546.64,0.00013972,2]
[356583360,1742728239417,-545.06,0.00013972,2]
[356583361,1742728239427,-548.88552446,0.00013972,2]
[356583362,1742728239439,-662.35447554,0.00013972,2]
[356583363,1742728239450,-1197.69,0.00013972,2]
[356583364,1742728239459,-550.11,0.00013972,2]
[356583365,1742728239468,-506.32,0.00013972,2]
[356583366,1742728239478,-476.39366801,0.00013972,2]
[356583379,1742728241039,-426.62633199,0.00013972,2]
[356583380,1742728241049,-500.0,0.00013972,2]
[356583381,1742728241058,-53.73469356,0.00013972,2]
[356583382,1742728241070,-411.61161921,0.00013972,2]
[356583390,1742728243265,-228.88368723,0.00013972,2]
[356583391,1742728243274,-1249.2,0.00013972,2]
[356583392,1742728243284,-500.0,0.00013972,2]
[356583393,1742728243293,-500.0,0.00013972,2]
[356583394,1742728243302,-1464.29,0.00013972,2]
[356583395,1742728243312,-1585.79118324,0.00013972,2]
[356583396,1742728243323,-668.71881676,0.00013972,2]
[356583397,1742728243333,-500.0,0.00013972,2]
[356583398,1742728243342,-222.37702888,0.00013972,2]
[356583404,1742728350691,604.94,0.00010959,2]
[356583408,1742728640629,154.0,0.00012002,2]
[356583410,1742728721286,178.928453,0.00010959,2]
[356583415,1742729151119,-201.62727766,0.00012502,2]
[356583416,1742729158082,-338.12414476,0.00012502,2]
[356583417,1742729158106,-1240.685643,0.00012628,2]
[356583418,1742729158128,-284.91116397,0.00012665,2]
[356583422,1742729184615,250.0,0.00011916,2]
[356583423,1742729191246,-251.80736459,0.00012665,2]
[356583426,1742729239129,-300.0,0.00012664,2]
[356583427,1742729239155,-500.0,0.00012665,2]
[356583428,1742729239180,-500.0,0.00012665,2]
[356583429,1742729239205,-500.0,0.00012665,2]
[356583430,1742729239229,-500.0,0.00012665,2]
[356583431,1742729239254,-500.0,0.00012665,2]
[356583432,1742729239282,-401.49919795,0.00012665,2]
[356583433,1742729239309,-500.0,0.00012665,2]
[356583434,1742729239333,-500.0,0.00012665,2]
[356583435,1742729239357,-500.0,0.00012665,2]
[356583436,1742729239382,-500.0,0.00012665,2]
[356583437,1742729239406,-500.0,0.00012665,2]
[356583438,1742729239432,-500.0,0.00012665,2]
[356583439,1742729239459,-500.0,0.00012665,2]
[356583440,1742729239484,-500.0,0.00012665,2]
[356583441,1742729239510,-500.0,0.00012665,2]
[356583442,1742729239537,-164.24516152,0.00012665,2]
[356583443,1742729240102,-335.75483848,0.00012665,2]
[356583444,1742729240127,-500.0,0.00012665,2]
[356583445,1742729240151,-500.0,0.00012665,2]
[356583446,1742729240173,-481.07557988,0.00012665,2]
[356583447,1742729240195,-15502.26344012,0.00012666,2]
[356583448,1742729240218,-500.0,0.0001267,2]
[356583449,1742729240240,-500.0,0.0001267,2]
[356583450,1742729240263,-222.59919669,0.0001267,2]
[356583451,1742729240284,-500.0,0.0001267,2]
[356583452,1742729240305,-183.9017499,0.0001267,2]
[356583453,1742729240328,-5954.41657408,0.00012671,2]
[356583454,1742729244081,-1508.46785557,0.00012671,2]
[356583455,1742729249137,-769.91584328,0.00012671,2]
[356583471,1742729323805,1489.85086324,8e-05,5]
[356583475,1742729347077,-300.0,0.0001267,2]
[356583476,1742729347100,-500.0,0.0001267,2]
[356583477,1742729347123,-433.49991088,0.0001267,2]
[356583478,1742729347145,-16667.19972707,0.00012671,2]
[356583479,1742729347167,-2219.74379556,0.00013212,2]
[356583480,1742729348114,-558.79450014,0.00013212,2]
[356583481,1742729348136,-402.58903369,0.00013573,2]
[356583482,1742729348158,-4221.42325225,0.00013573,2]
[356583483,1742729348178,-402.58903365,0.00013579,2]
[356583484,1742729348197,-402.58903365,0.00013586,2]
[356583485,1742729348218,-402.58903365,0.00013592,2]
[356583486,1742729348238,-402.58903365,0.00013598,2]
[356583487,1742729348258,-1161.59487506,0.00013598,2]
[356583488,1742729348277,-600.00303026,0.000136,2]
[356583489,1742729348302,-500.0,0.00013672,2]
[356583490,1742729348323,-155.81943768,0.00013672,2]
[356583491,1742729348346,-500.0,0.00013672,2]
[356583492,1742729348367,-178.73122493,0.00013672,2]
[356583493,1742729348389,-500.0,0.00013673,2]
[356583494,1742729348409,-500.0,0.00013673,2]
[356583495,1742729348430,-500.0,0.00013673,2]
[356583496,1742729348450,-500.0,0.00013673,2]
[356583497,1742729348472,-206.47485306,0.00013673,2]
[356583498,1742729348493,-501.82075072,0.00013673,2]
[356583499,1742729348514,-500.0,0.00013673,2]
[356583500,1742729348534,-500.0,0.00013673,2]
[356583501,1742729348556,-500.0,0.00013673,2]
[356583502,1742729348577,-354.39088526,0.00013673,2]
[356583503,1742729348597,-500.0,0.00013673,2]
[356583504,1742729348617,-502.79090001,0.00013673,2]
[356583505,1742729348638,-500.0,0.00013673,2]
[356583506,1742729348659,-500.0,0.00013673,2]
[356583507,1742729348680,-500.0,0.00013673,2]
[356583508,1742729348700,-529.34165244,0.00013673,2]
[356583509,1742729348721,-500.0,0.00013673,2]
[356583510,1742729348741,-500.0,0.00013673,2]
[356583511,1742729348762,-500.0,0.00013673,2]
[356583512,1742729348783,-509.72366492,0.00013673,2]
[356583513,1742729348805,-500.0,0.00013673,2]
[356583514,1742729348826,-500.0,0.00013673,2]
[356583515,1742729348847,-517.23416868,0.00013673,2]
[356583516,1742729348868,-500.0,0.00013673,2]
[356583517,1742729348888,-500.0,0.00013673,2]
[356583518,1742729348909,-500.0,0.00013673,2]
[356583519,1742729348930,-502.11978454,0.00013673,2]
[356583520,1742729348952,-500.0,0.00013673,2]
[356583521,1742729348974,-151.0,0.0001369,2]
[356583522,1742729348996,-600.0,0.0001369,2]
[356583523,1742729349019,-783.15406598,0.00013697,2]
[356583524,1742729349041,-500.0,0.00013698,2]
[356583525,1742729349064,-651.82,0.00013698,2]
[356583526,1742729349086,-913.98,0.00013698,2]
[356583527,1742729349107,-500.0,0.00013698,2]
[356583528,1742729349128,-500.0,0.00013698,2]
[356583529,1742729349151,-500.0,0.00013698,2]
[356583530,1742729349172,-500.0,0.00013698,2]
[356583531,1742729349193,-500.0,0.00013698,2]
[356583532,1742729349220,-544.5298964,0.00013698,2]
[356583533,1742729362137,-281.4901036,0.00013698,2]
[356583534,1742729362160,-500.0,0.00013698,2]
[356583535,1742729362181,-500.0,0.00013698,2]
[356583536,1742729362203,-500.0,0.00013698,2]
[356583537,1742729362224,-500.0,0.00013698,2]
[356583538,1742729362245,-500.0,0.00013698,2]
[356583539,1742729362265,-500.0,0.00013698,2]
[356583540,1742729362286,-500.0,0.00013698,2]
[356583541,1742729362310,-500.0,0.00013698,2]
[356583542,1742729362331,-500.0,0.00013698,2]
[356583543,1742729362352,-500.0,0.00013698,2]
[356583544,1742729362373,-500.0,0.00013698,2]
[356583545,1742729362394,-500.0,0.00013698,2]
[356583546,1742729362413,-500.0,0.00013698,2]
[356583547,1742729362434,-500.0,0.00013698,2]
[356583548,1742729362453,-500.0,0.00013698,2]
[356583549,1742729362474,-500.0,0.00013698,2]
[356583550,1742729362493,-500.0,0.00013698,2]
[356583551,1742729362513,-567.61338163,0.00013698,2]
[356583552,1742729362534,-500.0,0.00013698,2]
[356583553,1742729362555,-500.0,0.00013698,2]
[356583554,1742729362576,-586.47,0.00013698,2]
[356583555,1742729362596,-666.86,0.00013698,2]
[356583556,1742729362616,-581.65,0.00013698,2]
[356583557,1742729362637,-500.0,0.00013698,2]
[356583558,1742729362659,-500.0,0.00013698,2]
[356583559,1742729362680,-500.0,0.00013698,2]
[356583560,1742729362700,-735.27,0.00013698,2]
[356583561,1742729362721,-500.0,0.00013698,2]
[356583562,1742729362740,-500.0,0.00013698,2]
[356583563,1742729362762,-500.0,0.00013698,2]
[356583564,1742729362782,-520.91,0.00013698,2]
[356583565,1742729362803,-500.0,0.00013698,2]
[356583566,1742729362825,-177.98206317,0.00013698,2]
[356583567,1742729362847,-500.0,0.00013698,2]
[356583568,1742729362868,-500.0,0.00013698,2]
[356583569,1742729362889,-500.0,0.00013698,2]
[356583570,1742729362909,-500.0,0.00013698,2]
[356583571,1742729362930,-500.0,0.00013698,2]
[356583572,1742729362952,-500.0,0.00013698,2]
[356583573,1742729362972,-500.0,0.00013698,2]
[356583574,1742729362992,-500.0,0.00013698,2]
[356583575,1742729363014,-500.0,0.00013698,2]
[356583576,1742729363035,-500.0,0.00013698,2]
[356583577,1742729363056,-500.0,0.00013698,2]
[356583578,1742729363078,-500.0,0.00013698,2]
[356583579,1742729363100,-500.0,0.00013698,2]
[356583580,1742729363123,-500.0,0.00013698,2]
[356583581,1742729363146,-500.0,0.00013698,2]
[356583582,1742729363168,-500.0,0.00013698,2]
[356583583,1742729363192,-500.0,0.00013698,2]
[356583584,1742729363215,-500.0,0.00013698,2]
[356583585,1742729363285,-500.0,0.00013698,2]
[356583586,1742729363309,-500.0,0.00013698,2]
[356583587,1742729363329,-500.0,0.00013698,2]
[356583588,1742729363348,-677.45,0.00013698,2]
[356583589,1742729363368,-500.0,0.00013698,2]
[356583590,1742729363390,-1354.51,0.00013698,2]
[356583591,1742729363411,-500.0,0.00013698,2]
[356583592,1742729363431,-587.98,0.00013698,2]
[356583593,1742729363453,-500.0,0.00013698,2]
[356583594,1742729363478,-1538.76,0.00013698,2]
[356583595,1742729363503,-500.0,0.00013698,2]
[356583596,1742729363524,-90.24188012,0.00013698,2]
[356583644,1742729432401,-9502.8042485,0.00012699,2]
[356583645,1742729432411,-500.0,0.00013673,2]
[356583646,1742729432422,-151.0,0.0001369,2]
[356583647,1742729432432,-600.0,0.0001369,2]
[356583648,1742729432442,-300.0,0.00013697,2]
[356583649,1742729432452,-500.0,0.00013697,2]
[356583650,1742729432462,-325.11185745,0.00013697,2]
[356583651,1742729432472,-409.75811988,0.00013698,2]
[356583652,1742729432482,-500.0,0.00013698,2]
[356583653,1742729432492,-557.5,0.00013698,2]
[356583654,1742729432502,-556.33,0.00013698,2]
[356583655,1742729432512,-2091.39,0.00013698,2]
[356583656,1742729432522,-677.74,0.00013698,2]
[356583657,1742729432532,-1172.63,0.00013698,2]
[356583658,1742729432541,-500.0,0.00013698,2]
[356583659,1742729432551,-500.0,0.00013698,2]
[356583660,1742729432561,-500.0,0.00013698,2]
[356583661,1742729432571,-500.0,0.00013698,2]
[356583662,1742729432581,-908.63,0.00013698,2]
[356583663,1742729432591,-984.41,0.00013698,2]
[356583664,1742729432600,-543.87,0.00013698,2]
[356583665,1742729432610,-705.25,0.00013698,2]
[356583666,1742729432621,-504.26,0.00013698,2]
[356583667,1742729432631,-500.0,0.00013698,2]
[356583668,1742729432640,-500.0,0.00013698,2]
[356583669,1742729432650,-536.68,0.00013698,2]
[356583670,1742729432660,-500.0,0.00013698,2]
[356583671,1742729432670,-500.0,0.00013698,2]
[356583672,1742729432679,-1893.14,0.00013698,2]
[356583674,1742729432689,-376.09854504,0.00013698,2]
[356583675,1742729432698,-527.29,0.00013698,2]
[356583676,1742729432708,-500.0,0.00013698,2]
[356583677,1742729432717,-500.0,0.00013698,2]
[356583678,1742729432728,-1101.68,0.00013698,2]
[356583679,1742729432738,-500.0,0.00013698,2]
[356583680,1742729432748,-536.75,0.00013698,2]
[356583681,1742729432758,-500.0,0.00013698,2]
[356583682,1742729432768,-500.0,0.00013698,2]
[356583683,1742729432777,-1166.65,0.00013698,2]
[356583684,1742729432787,-1319.88,0.00013698,2]
[356583685,1742729432797,-500.0,0.00013698,2]
[356583686,1742729432807,-500.0,0.00013698,2]
[356583687,1742729432817,-1062.29,0.00013698,2]
[356583688,1742729432827,-500.0,0.00013698,2]
[356583689,1742729432837,-500.0,0.00013698,2]
[356583690,1742729432847,-832.11,0.00013698,2]
[356583691,1742729432859,-500.0,0.00013698,2]
[356583692,1742729432871,-767.65,0.00013698,2]
[356583693,1742729432881,-500.0,0.00013698,2]
[356583694,1742729432891,-551.46,0.00013698,2]
[356583695,1742729432902,-500.0,0.00013698,2]
[356583696,1742729432913,-500.0,0.00013698,2]
[356583697,1742729432924,-500.0,0.00013698,2]
[356583698,1742729432934,-500.0,0.00013698,2]
[356583699,1742729432945,-554.23,0.00013698,2]
[356583700,1742729432955,-699.65,0.00013698,2]
[356583701,1742729432966,-747.98,0.00013698,2]
[356583702,1742729432977,-500.0,0.00013698,2]
[356583703,1742729432988,-1106.04283739,0.00013698,2]
[356583704,1742729433003,-155.18716261,0.00013698,2]
[356583705,1742729433014,-500.0,0.00013698,2]
[356583706,1742729433025,-627.03,0.00013698,2]
[356583707,1742729433037,-2073.12,0.00013698,2]
[356583708,1742729433049,-572.12,0.00013698,2]
[356583709,1742729433060,-500.0,0.00013698,2]
[356583710,1742729433071,-1060.74,0.00013698,2]
[356583711,1742729433083,-560.36060749,0.00013698,2]
[356583712,1742729433094,-740.24,0.00013698,2]
[356583713,1742729433107,-500.0,0.00013698,2]
[356583714,1742729433120,-2421.96,0.00013698,2]
[356583715,1742729433131,-464.52835846,0.00013698,2]
[356583716,1742729433145,-35.47164154,0.00013698,2]
[356583717,1742729433156,-500.0,0.00013698,2]
[356583718,1742729433167,-610.52,0.00013698,2]
[356583719,1742729433178,-675.74,0.00013698,2]
[356583720,1742729433189,-5388.61,0.00013698,2]
[356583721,1742729433200,-500.0,0.00013698,2]
[356583722,1742729433212,-500.0,0.00013698,2]
[356583723,1742729433223,-284.04873534,0.00013698,2]
[356583750,1742729438210,-215.95126466,0.00013698,2]
[356583752,1742729438220,-500.0,0.00013698,2]
[356583754,1742729438230,-754.28,0.00013698,2]
[356583756,1742729438239,-500.0,0.00013698,2]
[356583758,1742729438249,-725.52,0.00013698,2]
[356583760,1742729438259,-500.0,0.00013698,2]
[356583762,1742729438269,-558.02,0.00013698,2]
[356583764,1742729438279,-500.0,0.00013698,2]
[356583766,1742729438292,-500.0,0.00013698,2]
[356583768,1742729438306,-500.0,0.00013698,2]
[356583770,1742729438320,-500.0,0.00013698,2]
[356583772,1742729438330,-500.0,0.00013698,2]
[356583775,1742729438340,-500.0,0.00013698,2]
[356583777,1742729438351,-2611.83,0.00013698,2]
[356583779,1742729438360,-500.0,0.00013698,2]
[356583781,1742729438370,-737.17,0.00013698,2]
[356583783,1742729438379,-608.43428335,0.00013698,2]
[356583785,1742729438390,-500.0,0.00013698,2]
[356583787,1742729438400,-646.25,0.00013698,2]
[356583789,1742729438409,-500.0,0.00013698,2]
[356583791,1742729438418,-500.0,0.00013698,2]
[356583793,1742729438428,-713.36,0.00013698,2]
[356583795,1742729438438,-500.0,0.00013698,2]
[356583797,1742729438447,-288.25243957,0.00013698,2]
[356583809,1742729438553,-211.74756043,0.00013698,2]
[356583811,1742729438563,-1097.88,0.00013698,2]
[356583813,1742729438572,-500.0,0.00013698,2]
[356583815,1742729438582,-827.77,0.00013698,2]
[356583817,1742729438591,-1750.6,0.00013698,2]
[356583819,1742729438601,-500.0,0.00013698,2]
[356583821,1742729438611,-500.0,0.00013698,2]
[356583823,1742729438622,-825.17,0.00013698,2]
[356583824,1742729438631,-1145.1,0.00013698,2]
[356583826,1742729438640,-500.0,0.00013698,2]
[356583827,1742729438649,-605.93,0.00013698,2]
[356583828,1742729438659,-500.0,0.00013698,2]
[356583829,1742729438668,-820.58,0.00013698,2]
[356583830,1742729438678,-500.0,0.00013698,2]
[356583831,1742729438687,-745.52,0.00013698,2]
[356583832,1742729438696,-500.0,0.00013698,2]
[356583833,1742729438706,-500.0,0.00013698,2]
[356583834,1742729438716,-1110.3,0.00013698,2]
[356583835,1742729438726,-1732.0,0.00013698,2]
[356583836,1742729438736,-500.0,0.00013698,2]
[356583837,1742729438746,-685.93,0.00013698,2]
[356583838,1742729438756,-5752.36,0.00013698,2]
[356583839,1742729438767,-636.38,0.00013698,2]
[356583840,1742729438776,-673.81,0.00013698,2]
[356583841,1742729438786,-500.0,0.00013698,2]
[356583842,1742729438795,-828.23,0.00013698,2]
[356583843,1742729438804,-500.0,0.00013698,2]
[356583844,1742729438814,-2162.36,0.00013698,2]
[356583845,1742729438825,-500.0,0.00013698,2]
[356583846,1742729438836,-500.0,0.00013698,2]
[356583847,1742729438845,-500.0,0.00013698,2]
[356583848,1742729438855,-500.0,0.00013698,2]
[356583849,1742729438864,-1098.09,0.00013698,2]
[356583850,1742729438874,-3006.13,0.00013698,2]
[356583851,1742729438884,-2014.28799625,0.00013698,2]
[356583852,1742729438894,-500.0,0.00013698,2]
[356583853,1742729438903,-1264.65,0.00013698,2]
[356583854,1742729438913,-636.56,0.00013698,2]
[356583855,1742729438923,-2050.33,0.00013698,2]
[356583856,1742729438932,-500.0,0.00013698,2]
[356583857,1742729438941,-3433.31,0.00013698,2]
[356583858,1742729438950,-951.94,0.00013698,2]
[356583859,1742729438959,-500.0,0.00013698,2]
[356583860,1742729438969,-500.0,0.00013698,2]
[356583861,1742729438979,-500.0,0.00013698,2]
[356583862,1742729438988,-507.67,0.00013698,2]
[356583863,1742729438998,-500.0,0.00013698,2]
[356583864,1742729439008,-500.0,0.00013698,2]
[356583865,1742729439017,-9717.1,0.00013698,2]
[356583866,1742729439027,-500.0,0.00013698,2]
[356583867,1742729439036,-500.0,0.00013698,2]
[356583868,1742729439047,-500.0,0.00013698,2]
[356583869,1742729439056,-2823.40798417,0.00013698,2]
[356583870,1742729439247,-8149.54201583,0.00013698,2]
[356583871,1742729439257,-3441.79,0.00013698,2]
[356583872,1742729439267,-500.0,0.00013698,2]
[356583873,1742729439276,-636.25,0.00013698,2]
[356583874,1742729439285,-4875.79,0.00013698,2]
[356583875,1742729439294,-500.0,0.00013698,2]
[356583876,1742729439304,-584.01,0.00013698,2]
[356583877,1742729439318,-568.53277429,0.00013698,2]
[356583878,1742729439332,-501.44951117,0.00013698,2]
[356583879,1742729439343,-22025.65771454,0.00013698,2]
[356583880,1742729439355,-1765.89,0.00013698,2]
[356583881,1742729439365,-2793.53,0.00013698,2]
[356583882,1742729439377,-500.0,0.00013698,2]
[356583883,1742729439388,-500.0,0.00013698,2]
[356583884,1742729439400,-4794.68,0.00013698,2]
[356583885,1742729439412,-2100.53,0.00013698,2]
[356583886,1742729439424,-2798.58,0.00013698,2]
[356583887,1742729439434,-2036.42,0.00013698,2]
[356583888,1742729439445,-822.78,0.00013698,2]
[356583889,1742729439457,-500.0,0.00013698,2]
[356583890,1742729439467,-630.99,0.00013698,2]
[356583891,1742729439477,-671.76,0.00013698,2]
[356583892,1742729439487,-500.0,0.00013698,2]
[356583893,1742729439496,-500.0,0.00013698,2]
[356583894,1742729439549,-15082.93,0.00013698,2]
[356583895,1742729439559,-500.0,0.00013698,2]
[356583896,1742729439570,-105859.99778281,0.00013698,2]
[356583914,1742729442432,-873.97159549,0.00013698,2]
[356583915,1742729442443,-1952.0,0.00013698,2]
[356583924,1742729443464,-4489.85086324,0.00013698,2]
[356583927,1742729443548,-27.97859607,0.00013698,2]
[356583930,1742729443634,-207.08010575,0.00013698,2]
[356583940,1742729446312,-2565.88080546,0.00013698,2]
[356583941,1742729446326,-3227.91796584,0.00013698,2]
[356583942,1742729446421,-20079.10228534,0.00013698,2]
[356583943,1742729446431,-500.0,0.00013698,2]
[356583944,1742729446441,-500.0,0.00013698,2]
[356583945,1742729446451,-500.0,0.00013698,2]
[356583946,1742729446461,-500.0,0.00013698,2]
[356583947,1742729446471,-85.0991905,0.00013698,2]
[356583949,1742729446541,-85.54620481,0.00013698,2]
[356583950,1742729844514,9968.94,0.00012002,2]
[356583953,1742729908684,166.243399,0.00010959,2]
[356583957,1742730434112,-1754.7953406,0.00012264,2]
[356583958,1742730436078,-1293.04820429,0.00012264,2]
[356583959,1742730438149,-553.91679387,0.0001226,14]
[356583960,1742730545099,-200.01852087,0.0001216,2]
[356583961,1742730545122,-500.0,0.00012259,2]
[356583962,1742730545145,-500.0,0.00012259,2]
[356583963,1742730545169,-500.0,0.00012259,2]
[356583964,1742730545191,-374.00557097,0.00012259,2]
[356583965,1742730545218,-500.0,0.00012259,2]
[356583966,1742730545241,-500.0,0.00012259,2]
[356583967,1742730545264,-500.0,0.00012259,2]
[356583968,1742730545285,-500.0,0.00012259,2]
[356583969,1742730545313,-500.0,0.00012259,2]
[356583970,1742730545336,-500.0,0.00012259,2]
[356583971,1742730545363,-614.99197944,0.00012259,2]
[356583972,1742730545388,-500.0,0.00012259,2]
[356583973,1742730545410,-500.0,0.00012259,2]
[356583974,1742730545432,-500.0,0.00012259,2]
[356583975,1742730545453,-500.0,0.00012259,2]
[356583976,1742730545475,-500.0,0.00012259,2]
[356583977,1742730545496,-577.57830021,0.00012263,2]
[356583978,1742730545518,-5760.82029531,0.00012264,2]
[356583979,1742730545539,-5340.8268764,0.00012635,2]
[356583980,1742730545559,-261.94307665,0.00012635,2]
[356583981,1742730545579,-24900.0,0.00012736,2]
[356583982,1742730545600,-2190.73612354,0.000129,2]
[356583983,1742730547505,38360.41037976,0.00012,14]
[356583984,1742730547534,57.58962024,0.00012,14]
[356583985,1742730548146,-1734.84692751,0.000129,2]
[356583988,1742730562095,-489.50443911,0.00012664,2]
[356583989,1742730568072,-24410.49556089,0.00012664,2]
[356583990,1742730568093,-132.30653347,0.000129,2]
[356583991,1742730568114,-3422.78170564,0.00013073,2]
[356583992,1742730569096,-635.10787885,0.00013073,2]
[356583993,1742730569118,-39.06968239,0.00013598,2]
[356583994,1742730569146,-673.03731137,0.00013598,2]
[356584019,1742730632481,-4676.43845603,0.00013598,2]
[356584020,1742730632490,-248.9999991,0.00013671,2]
[356584022,1742730632499,-300.0,0.00013672,2]
[356584023,1742730632509,-500.0,0.00013673,2]
[356584024,1742730632518,-500.0,0.00013673,2]
[356584025,1742730632528,-500.0,0.00013673,2]
[356584026,1742730632537,-506.30080193,0.00013673,2]
[356584027,1742730632546,-500.0,0.00013673,2]
[356584028,1742730632556,-500.0,0.00013673,2]
[356584029,1742730632565,-230.20357616,0.00013673,2]
[356584030,1742730632575,-500.0,0.00013673,2]
[356584031,1742730632584,-500.0,0.00013673,2]
[356584032,1742730632594,-500.0,0.00013673,2]
[356584033,1742730632603,-502.37419339,0.00013673,2]
[356584034,1742730632613,-500.0,0.00013673,2]